Cogmind - Beta 12 @@@ ROGUE MODE // 2023.04.04 @ 17:02:16 Player: Sanity Result: Destroyed by G-47 Trooper with Particle Gun Performance ------------- Evolutions (0) 0 Regions Visited (1) 200 Robots Destroyed (12) 60 Value Destroyed (217) 217 Prototype IDs (0) 0 Alien Tech Used (0) 0 Bonus (0) 0 TOTAL SCORE: 477 Bonus ------- None Cogmind --------- Core Integrity 0/250 Matter 244/300 Energy 99/100 System Corruption 0% Temperature Cool (9) Movement Core (50) Location -10/Materials Parts ------- > --- POWER (1) -------- (None) > --- PROPULSION (2) --- (None) > --- UTILITY (2) ------ (None) > --- WEAPON (2) ------- Light Assault Rifle > --- INVENTORY (5) ---- Light Ion Engine Wheel Wheel Peak State ------------ > --- POWER ------------ Light Ion Engine > --- PROPULSION ------- Aluminum Leg Aluminum Leg > --- UTILITY ---------- Heat Sink Structural Scanner > --- WEAPON ----------- Assault Rifle Grenade Launcher > --- INVENTORY -------- Light Ion Engine Wheel Wheel Assault Rifle [Rating: 7] Favorites ----------- Power Light Ion Engine Engine Light Ion Engine Propulsion Aluminum Leg Leg Aluminum Leg Utility Heat Sink Device Heat Sink Weapon Assault Rifle Energy Gun Small Laser Ballistic Gun Assault Rifle Launcher Grenade Launcher Build | -11 -10 ------- Run | Jun Mat Slots Evolved . | . . Power . | . . Propulsion . | . . Utility . | . . Weapon . | . . Parts Attached 10 | 6 4 Power 1 | 1 . Engine 1 | 1 . Core . | . . Reactor . | . . Propulsion 2 | 2 . Treads . | . . Leg 2 | 2 . Wheel . | . . Hover . | . . Flight . | . . Utility 2 | 1 1 Device 2 | 1 1 Storage . | . . Processor . | . . Hackware . | . . Protection . | . . Artifact . | . . Weapon 5 | 2 3 Energy Gun 1 | 1 . Energy Cannon . | . . Ballistic Gun 3 | 1 2 Ballistic Cannon . | . . Launcher 1 | . 1 Special Weapon . | . . Impact Weapon . | . . Slashing Weapon . | . . Piercing Weapon . | . . Special Melee Weapon . | . . Unidentified Prototypes . | . . Parts Lost 8 | . 8 Power 1 | . 1 Propulsion 2 | . 2 Utility 2 | . 2 Weapon 3 | . 3 Highest Loss Streak 8 | . 8 To Critical Strikes 1 | . 1 Average Slot Usage (%) 80 | . 80 Engine 12 | . 12 Leg 21 | . 21 Device 20 | . 20 Energy Gun 5 | . 5 Ballistic Gun 14 | . 14 Launcher 5 | . 5 Naked Turns . | . . Heaviest Build 10 | 7 10 Greatest Support 20 | 20 20 Greatest Overweight (x) 2 | . 2 Average Overweight (x) . | . . Largest Inventory Capacity 5 | 5 5 Average Capacity 5 | 5 5 Most Carried 5 | 4 5 Average Carried 2 | 2 3 Final Capacity 5 | 5 5 Final Carried 3 | 3 3 Class Distribution -------------------- 100% | Mutant Dominant Class ---------------- Mutant | -10/Materials Resources | -11 -10 ----------- Run | Jun Mat Matter Collected 364 | 278 86 Remotely . | . . Salvage Created 235 | 42 193 Parts 16 | 1 15 Haulers Intercepted . | . . Recyclers Shooed . | . . Parts Field Recycled . | . . Retrieved Matter . | . . Parts Self-Destructed . | . . Prevented . | . . Kills | -11 -10 ------- Run | Jun Mat Combat Hostiles Destroyed 10 | 1 9 Guns 8 | 1 7 AOE 2 | . 2 Classes Destroyed 4 | 1 3 Builder 1 | . 1 Watcher 1 | . 1 Swarmer 6 | . 6 Grunt 4 | 1 3 Best Kill Streak 8 | 1 8 Combat Bots Only 4 | 1 4 Max Kills in Single Turn 1 | 1 1 Gunslinging . | . . Exploded 1 | . 1 Melee . | . . Uniques/NPCs Destroyed . | . . Combat | -11 -10 -------- Run | Jun Mat Damage Taken 853 | 54 799 Core 256 | . 256 Absorbed by Shields . | . . Core Remaining (%) 100 | 100 . Volleys Fired 42 | 6 36 Largest 2 | 2 2 Hottest 60 | 60 60 Shots Fired 60 | 12 48 Gun 55 | 12 43 Cannon . | . . Launcher 5 | . 5 Special . | . . Kinetic 42 | 6 36 Thermal 13 | 6 7 Explosive 5 | . 5 Electromagnetic . | . . Robot Hit Streak 6 | 6 6 Robot Miss Streak 7 | 3 7 Penetration Max . | . . Secondary Targets . | . . Shots Hit Robots 35 | 8 27 Core Hits 18 | 2 16 Critical Kills . | . . Critical Parts Destroyed . | . . Critical Strikes . | . . Melee Attacks . | . . Impact . | . . Slashing . | . . Piercing . | . . Sneak Attacks . | . . Combat Hostiles . | . . Follow-up Attacks . | . . Damage Inflicted 748 | 127 621 Guns 397 | 119 278 Cannons . | . . Explosions 343 | . 343 Melee . | . . Ramming 8 | 8 . Kinetic 316 | 61 255 Thermal 81 | 58 23 Explosive 343 | . 343 Electromagnetic . | . . Impact . | . . Slashing . | . . Piercing . | . . Highest Corruption . | . . Average Corruption . | . . Corruption Purged . | . . Corruption Blocked . | . . Overload Shots . | . . Overflow Damage 26 | . 26 Projectiles . | . . Explosions 26 | . 26 Melee . | . . Knockbacks . | . . Impact . | . . Kinetic . | . . Secondary . | . . Self-Inflicted Damage 40 | . 40 Shots 1 | . 1 Rammed . | . . Targets Rammed 1 | 1 . Kicked 1 | 1 . Crushed . | . . Highest Temperature 30 | 30 10 Average Temperature 17 | 21 4 Received Heat Transfer 234 | 30 204 Siege Activations . | . . Robots Corrupted . | . . Combat Hostiles . | . . Parts Fried . | . . Impact Corruptions . | . . Robots Melted . | . . Combat Hostiles . | . . Parts Melted . | . . Heat Transferred 175 | 125 50 Parts Sabotaged . | . . Parts Stolen . | . . Parts Stripped . | . . Power Chain Reactions . | . . Missiles Intercepted . | . . Alert | -11 -10 ------- Run | Jun Mat Peak Influence 197 | 20 197 Initial 13 | . 13 Average 44 | 12 104 Maximum Alert Level . | . . Low Security (%) 100 | 100 100 Level 1 . | . . Level 2 . | . . Level 3 . | . . Level 4 . | . . Level 5 . | . . High Security . | . . Max Security . | . . Squads Dispatched . | . . Investigation . | . . Extermination . | . . Reinforcement . | . . Assault . | . . Garrison . | . . Intercept . | . . Searches Triggered . | . . Construction Impeded . | . . Haulers Reinforced . | . . Active Scanning Responses . | . . Cargo Convoy Interrupts . | . . Stealth | -11 -10 --------- Run | Jun Mat Distress Signals 1 | . 1 Communications Jammed . | . . Distress Signals . | . . Times Spotted 12 | 1 11 Peak Tracking Total 6 | 1 6 Tactical Retreats . | . . Traps | -11 -10 ------- Run | Jun Mat Traps Triggered . | . . Indirectly . | . . Trap Hack Attempts . | . . Triggered . | . . Disarmed . | . . Reprogrammed . | . . Reused . | . . Traps Extracted . | . . Installed . | . . Triggered . | . . Machines | -11 -10 ---------- Run | Jun Mat Machines Disabled . | . . Max in Single Turn . | . . Machines Repaired . | . . Machines Sabotaged . | . . Overloaded Fab Kills . | . . Hacking | -11 -10 --------- Run | Jun Mat Machines Accessed . | . . Terminals . | . . Fabricators . | . . Repair Stations . | . . Recycling Units . | . . Scanalyzers . | . . Garrison Access . | . . Total Hacks . | . . Successful . | . . Failed . | . . Catastrophic . | . . Database Lockouts . | . . Manual . | . . Terminals . | . . Fabricators . | . . Repair Stations . | . . Recycling Units . | . . Scanalyzers . | . . Garrison Access . | . . Terminal Hacks . | . . Fabricator Hacks . | . . Repair Station Hacks . | . . Recycling Unit Hacks . | . . Scanalyzer . | . . Garrison Access Hacks . | . . Unauthorized Hacks . | . . Terminals . | . . Fabricators . | . . Repair Stations . | . . Recycling Units . | . . Scanalyzers . | . . Garrison Access . | . . Data Cores Recovered . | . . Used . | . . Hacking Detections . | . . Full Trace Events . | . . Feedback Events . | . . Feedback Blocked . | . . Robot Schematics Acquired . | . . Robots Built . | . . Authchips . | . . Time . | . . Total Robot Build Rating . | . . Part Schematics Acquired . | . . Parts Built . | . . Authchips . | . . Time . | . . Total Part Build Rating . | . . Parts Repaired . | . . Time . | . . Parts Recycled . | . . Recycled Matter . | . . Retrieved Matter . | . . Retrieved Components . | . . Parts Scanalyzed . | . . Part Schematics Acquired . | . . Parts Damaged . | . . Bothacking | -11 -10 ------------ Run | Jun Mat Used RIF Installer . | . . Robots Hacked . | . . Non-combat . | . . Combat . | . . Robot Hacks Applied . | . . Relay Couplers Released . | . . Fabnet Peak Effective % . | . . Robots Rewired . | . . Allies Hacked . | . . Hacks Repelled . | . . Allies | -11 -10 -------- Run | Jun Mat Total Allies . | . . Largest Group . | . . Highest-Rated Group . | . . Highest-Rated Ally . | . . Total Orders . | . . Ally Attacks . | . . Total Damage . | . . Kills . | . . Allies Corrupted . | . . Allies Melted . | . . Intel | -11 -10 ------- Run | Jun Mat Robot Analysis Total . | . . Derelict Logs Recovered . | . . Drone Launches . | . . Drone Recoveries . | . . Exploration | -11 -10 ------------- Run | Jun Mat Turns Passed 538 | 351 187 Spaces Moved 273 | 191 82 Core 30 | 23 7 Treads . | . . Legs 243 | 168 75 Wheels . | . . Hover . | . . Flight . | . . Fastest Speed 50 | 50 50 Average Speed 112 | 111 115 Slowest Speed 150 | 120 150 Overloaded Moves . | . . Propulsion Burnouts . | . . Robots Hopped . | . . Cave-ins Triggered . | . . Exploration Rate (%) 14 | 8 21 Regions Visited 1 Branch Regions . Pre-discovered Areas . | . . Known Exits Taken . | . . Unknown Exits Taken 1 | 1 . Scrap Searched . | . . Spaces Dug . | . . Terrain Destroyed 38 | . 38 Melee . | . . Projectile . | . . AOE 38 | . 38 Terrain Rammed . | . . Walls Destroyed . | . . Machines Disabled . | . . Actions | -11 -10 --------- Run | Jun Mat Total 445 | 316 129 Wait 106 | 104 2 Move 272 | 190 82 Hop . | . . Pick Up 13 | 9 4 Fast Attach . | . . Attach 9 | 6 3 Detach . | . . Swap 1 | . 1 Drop 1 | . 1 Fire 42 | 6 36 Melee . | . . Ram . | . . Kick 1 | 1 . Crush . | . . Escape Stasis . | . . Rewire . | . . Trap . | . . Miscellaneous . | . . Route ------- -11/Junkyard -10/Materials History --------- Turn | Location | Event 2 | -11/Junkyard | Met Revision 17 114 | -11/Junkyard | Discovered new exit (range 8) 352 | -11/Junkyard | Entered Materials 353 | -10/Materials | Build established: Mutant 509 | -10/Materials | Core integrity fell below 50% 521 | -10/Materials | Core integrity fell below 20% 539 | -10/Materials | Destroyed by G-47 Trooper with Particle Gun Last Messages --------------- G-34 Mercenary destroyed. K-01 Serf collects debris. U-05 Engineer lays Concrete. U-05 Engineer builds a Wall. U-05 Engineer builds a Door. Assault Rifle destroyed. U-05 Engineer lays Concrete. Acquired 10 matter. Acquired 20 matter. K-01 Serf collects debris. Acquired Lgt. Assault Rifle. U-05 Engineer lays Concrete. S-10 Pest destroyed. K-01 Serf collects debris. U-05 Engineer builds a Wall. U-05 Engineer lays Concrete. Structural Scanner destroyed. U-05 Engineer builds a Door. U-05 Engineer builds a Wall. [Achievement: First Step to Greatness] Map ----- +----------------------------------------------------+ | ????????????????????????????????????????????? | | ????????????????????????????????????????????? | | ????????????????????????????????????????????? | | ????????????????????????????????????????????? | | ????????????????????????????????????????????? | | ????????????????????????????????????????????? | | ????????????????????????????????????????????? | | ????????????????????????????????????????????? | | ????????????????????????????????????????????? | | ????????????????????????????????????????????? | | ????????????????????????????????????????????? | | ????????????????????????????????????????????? | | ????????????????????????????????????????????? | | ????????## ?????????????????????????????????? | | ????????## ????????????????????????????????? | | ????????## ##?????????????????????????????? | | ????????## ### ???????????????????????? | | ??????????? ##+####?/##???????????????????? | | ???????????? ##? ##???????????????????? | | ????????????? ##? ##???????????????????? | | ?????????????? ##? ##???????????????????? | | ?????????? ## ### ## ??????????????????? | | ??????????###### ### ## ??????????????????? | | ?????????? + + ??????????????????? | | ?????????????? #u %* # ??????????????????? | | ?????????? ? # @ # ??????????????????? | | ????########+### * # ###??????????? | | ????######## ### ##########??????????? | | ????## ??????????? | | ????## !g ?????????? | | ????## =%* ?????????? | | ????###+######### = ?????????? | | ???? ### # ?????????? | | ????????????## ## a %= ?????????? | | ????????????### # u ########### /?????????? | | ????????????### # ##+##########" ??????????? | | ????????????##### # ##??##T????????????? | | ????????????## # # """ ##?????????????????? | | ????????????## #u# """ ##?????????????????? | | ????????????## # # """ ##?????????????????? | | ????????? ### # # ##?????????????????? | | ?????????######## # """ ##?????????????????? | | ?????????## ### # """ # ?????????????????? | | ?????????## ### # """ # ?????????????????? | | ?????????## ### # # ?????????????????? | | ########### # # """????????????????????? | | ########### + + ?""?????????????????????? | | # [ ## # # ?"??????????????????????? | | # ## # # ?????????????????????? | | # ###+## ####+##???????????????????? | +----------------------------------------------------+ Best States ------------- Heat Dissipation 35 Energy Generation 10 Energy Capacity 125 Matter Stores 300 Matter Capacity 300 Sight Range 16 Terrain Scan Density 10 Evasion (%) 55 Item Schematics ----------------- None Robot Schematics ------------------ None Fabricated ------------ Nothing Alien Tech Used ----------------- None Achievements -------------- First Step to Greatness Let's See Who's Tougher Storm Trooper Challenges ------------ None Game ------ Seed ShockDecoderBiocell Manual? 0 Play Time 00:36:39 Cumulative 1.1 hours Start 2023.04.04 @ 16:18:15 End 2023.04.04 @ 17:02:16 Sessions 1 Manual Loads 0 Difficulty Rogue Special Mode None Game No. 1 Rogue 1 Adventurer 0 Explorer 0 Win Type - Total 0 Types 0/0/0/0/0/0/0/0/0 Lore% 0 Gallery% 0 Achievement% 1 Wizard Run 0 Options --------- ASCII 0 Keyboard 0 Movement Mouse Keybinds 0 Fullscreen 1 Font 24/Smallcaps Map View 113x50 Tactical HUD 0 Map Filters NONE Filters NONE Steam 1 RUN: 17c1db5b-0232-4f27-bdba-7db7d2c62478